fUSD/lending_fUSD_20240116
["ID","MTS","AMOUNT","RATE_DAILY","PERIOD"]
[311724408,1705363208710,495.94499985,0.00021689,2]
[311724409,1705363210992,200.0,0.00021652,2]
[311724410,1705363248051,150.0,0.00021694,2]
[311724411,1705363328443,510.42,0.000198,2]
[311724412,1705363328680,510.42,0.00022064,2]
[311724414,1705363338229,156.98,0.00021942,2]
[311724415,1705363350533,155.03,0.00021852,2]
[311724416,1705363350917,155.03,0.00021924,2]
[311724417,1705363351139,155.03,0.00021995,2]
[311724418,1705363351359,155.03,0.00022066,2]
[311724428,1705363405507,290.44,0.00021633,2]
[311724429,1705363412846,23900.0,0.00021636,2]
[311724434,1705363430363,155.0,0.00022,3]
[311724437,1705363452372,208.37864213,0.00022066,2]
[311724438,1705363468673,2577.3,0.00021775,2]
[311724439,1705363477041,-249.08654529,0.00022102,2]
[311724440,1705363490609,-65.0330952,0.00022102,2]
[311724441,1705363490630,-132.7248148,0.00022102,2]
[311724442,1705363497432,-71.57288523,0.00022102,2]
[311724443,1705363497455,-105.70366006,0.00022102,2]
[311724444,1705363499366,301.14108599,0.00022101,2]
[311724445,1705363500206,-176.98345471,0.00022102,2]
[311724446,1705363502728,234.28049609,0.00022101,2]
[311724447,1705363502933,150.0,0.00020688,2]
[311724448,1705363503121,150.0,0.00021071,4]
[311724449,1705363503420,150.0,0.00021454,4]
[311724450,1705363503719,150.0,0.00021837,4]
[311724451,1705363506479,150.0,0.00020688,2]
[311724452,1705363510278,150.0,0.00020688,2]
[311724453,1705363512089,150.0,0.00020688,2]
[311724454,1705363513871,192.81030687,0.00020688,2]
[311724456,1705363516576,150.0,0.00020688,2]
[311724460,1705363517549,150.0,0.00020688,2]
[311724461,1705363521630,523.58499754,0.00022101,2]
[311724462,1705363528242,940.55440499,0.00022101,2]
[311724463,1705363529552,473.02074418,0.00022101,2]
[311724464,1705363533316,-136.6521257,0.00022102,2]
[311724465,1705363533336,-18.7678743,0.00022102,2]
[311724466,1705363534986,-150.0,0.00022102,2]
[311724467,1705363535799,-150.0,0.00022102,2]
[311724468,1705363536335,-150.0,0.00022102,2]
[311724469,1705363537912,2000.0,0.00021662,2]
[311724470,1705363538114,-150.0,0.00022102,2]
[311724471,1705363540401,-150.0,0.00022102,2]
[311724472,1705363541737,-150.0,0.00022102,2]
[311724473,1705363542301,-150.0,0.00022102,2]
[311724474,1705363542816,250.0,0.00021918,2]
[311724475,1705363545207,-150.0,0.00022102,2]
[311724476,1705363545764,-150.0,0.00022102,2]
[311724477,1705363546577,-150.0,0.00022102,2]
[311724478,1705363547471,-150.0,0.00022102,2]
[311724479,1705363549493,-150.0,0.00022102,2]
[311724480,1705363550129,-150.0,0.00022102,2]
[311724481,1705363550819,-150.0,0.00022102,2]
[311724482,1705363568210,156.31473598,0.00022004,2]
[311724483,1705363572121,158.73,0.00021663,2]
[311724484,1705363573869,301.14108599,0.00022101,2]
[311724485,1705363583971,10520.01750502,0.00022101,2]
[311724486,1705363589470,7149.0,0.000301,90]
[311724487,1705363602247,523.58499754,0.00022101,2]
[311724488,1705363607402,419.33924047,0.00022101,2]
[311724489,1705363610768,940.55440499,0.00022101,2]
[311724490,1705363621769,250.0,0.00022,2]
[311724491,1705363625268,1000.0,0.00021678,2]
[311724492,1705363640465,176.2,0.00022,2]
[311724493,1705363663854,256.71,0.00021999,2]
[311724494,1705363682506,164.39,0.00021697,2]
[311724498,1705363687262,940.55440499,0.00022101,2]
[311724499,1705363742544,904.39,0.00021701,2]
[311724504,1705363800395,169.69,0.00021894,2]
[311724505,1705363814014,154.44,0.00021874,2]
[311724506,1705363814253,154.44,0.00021945,2]
[311724507,1705363814481,154.44,0.00022016,2]
[311724508,1705363814716,154.44,0.00022087,2]
[311724522,1705363832043,-843.71710098,0.00022102,2]
[311724523,1705363832054,-646.10174978,0.00022102,2]
[311724524,1705363832070,-1831.90104034,0.00022102,2]
[311724525,1705363832080,-538.37296672,0.00022102,2]
[311724526,1705363832124,-461.62703328,0.00022102,2]
[311724527,1705363832135,-486.31205303,0.00022136,2]
[311724528,1705363832145,-157.34,0.0002215,2]
[311724529,1705363832155,-154.44,0.00022159,2]
[311724530,1705363832165,-150.0,0.00022211,2]
[311724531,1705363832175,-203.71,0.00022212,2]
[311724532,1705363832185,-150.0,0.0002222,4]
[311724533,1705363832194,-154.44,0.0002223,2]
[311724534,1705363832203,-2159.46,0.00022279,2]
[311724535,1705363832213,-499.99,0.00022279,2]
[311724536,1705363832222,-1369.16,0.00022279,2]
[311724538,1705363832232,-154.44,0.00022301,2]
[311724540,1705363832242,-203.71,0.00022327,2]
[311724542,1705363832252,-1627.23,0.00022327,2]
[311724544,1705363832261,-154.44,0.00022372,2]
[311724545,1705363832271,-203.71,0.00022442,2]
[311724546,1705363832280,-154.44,0.00022444,2]
[311724548,1705363832289,-154.44,0.00022515,2]
[311724550,1705363832298,-352.03,0.00022548,2]
[311724552,1705363832308,-203.71,0.00022557,2]
[311724554,1705363832318,-154.44,0.00022586,2]
[311724556,1705363832327,-150.0,0.00022603,4]
[311724558,1705363832336,-154.44,0.00022657,2]
[311724560,1705363832348,-2088.5668,0.00022666,2]
[311724563,1705363832358,-203.71,0.00022672,2]
[311724565,1705363832368,-904.39,0.0002268,2]
[311724567,1705363832378,-154.44,0.00022728,2]
[311724569,1705363832387,-587.6711,0.00022732,2]
[311724571,1705363832397,-1747.8624,0.00022732,2]
[311724573,1705363832407,-158.73,0.00022747,2]
[311724575,1705363832418,-725.96,0.00022763,2]
[311724577,1705363832428,-725.24,0.00022764,2]
[311724579,1705363832438,-7530.18087525,0.00022765,2]
[311724580,1705363832487,-380.49190557,0.00022765,2]
[311724581,1705363832498,-450.0,0.00022765,2]
[311724584,1705363837964,-1558.81135487,0.00022765,2]
[311724585,1705363837976,-970.30246952,0.00022765,2]
[311724586,1705363837997,-1486.027098,0.00022765,2]
[311724587,1705363838013,-755.1356472,0.00022765,2]
[311724588,1705363838026,-162.35947492,0.00022765,2]
[311724589,1705363838037,-3205.32742766,0.00022766,2]
[311724590,1705363838047,-11966.06111287,0.00022766,2]
[311724591,1705363838071,-14959.59315688,0.00022766,2]
[311724592,1705363838081,-153.0,0.00022766,2]
[311724593,1705363838092,-222.13842387,0.00022768,4]
[311724594,1705363838102,-21814.0,0.0002277,2]
[311724595,1705363838113,-203.71,0.00022787,2]
[311724596,1705363838123,-726.5,0.00022788,2]
[311724597,1705363838133,-168.74233355,0.00022799,2]
[311724598,1705363838143,-154.44,0.000228,2]
[311724599,1705363838153,-356.4008579,0.00022819,2]
[311724600,1705363838163,-168.74233352,0.00022824,2]
[311724601,1705363838173,-348.169059,0.0002283,2]
[311724602,1705363838183,-158.36302786,0.0002283,2]
[311724603,1705363838194,-4256.57228959,0.0002283,2]
[311724604,1705363838204,-337.11641758,0.0002283,2]
[311724605,1705363838213,-541.98350192,0.0002283,2]
[311724606,1705363838223,-475.8793718,0.0002283,2]
[311724607,1705363838236,-917.65222171,0.0002283,2]
[311724608,1705363838246,-157.15051088,0.0002283,2]
[311724609,1705363838255,-1040.28791122,0.0002283,2]
[311724611,1705363838266,-168.71243974,0.0002283,2]
[311724613,1705363838276,-313.31309106,0.0002283,2]
[311724615,1705363838286,-229.92784566,0.0002283,2]
[311724617,1705363838295,-191.17367294,0.0002283,2]
[311724618,1705363838305,-206.19924753,0.0002283,2]
[311724619,1705363838315,-300.0,0.0002283,2]
[311724620,1705363838325,-204.07310533,0.0002283,2]
[311724621,1705363838335,-827.48898126,0.0002283,2]
[311724622,1705363838344,-462.25867978,0.0002283,2]
[311724623,1705363838355,-429.20980411,0.0002283,2]
[311724624,1705363838368,-19091.64966794,0.00022831,2]
[311724626,1705363838380,-536.80126056,0.00022831,4]
[311724628,1705363838391,-282.64689268,0.00022831,2]
[311724631,1705363838402,-6686.04632629,0.00022832,2]
[311724634,1705363838425,-364.13822102,0.00022832,2]
[311724657,1705363838649,-691.20961858,0.00022832,2]
[311724658,1705363838702,-21343.4211636,0.00022832,2]
[311724659,1705363838715,-2686.55677005,0.00022832,2]
[311724660,1705363838728,-42814.17883046,0.00022832,2]
[311724662,1705363838738,-168.74233352,0.0002285,2]
[311724664,1705363838748,-154.44,0.00022871,2]
[311724666,1705363838758,-168.74233352,0.00022875,2]
[311724668,1705363838768,-820.72,0.00022898,2]
[311724670,1705363838777,-1144.33,0.00022898,2]
[311724672,1705363838788,-983.4,0.00022899,2]
[311724674,1705363838798,-4032.87,0.00022899,2]
[311724676,1705363838808,-809.71,0.00022899,2]
[311724679,1705363838818,-500.0,0.00022899,2]
[311724681,1705363838828,-1879.84,0.00022899,2]
[311724683,1705363838838,-4858.68,0.00022899,2]
[311724685,1705363838848,-500.0,0.00022899,2]
[311724687,1705363838859,-2592.7,0.00022899,2]
[311724689,1705363838868,-400.48710631,0.00022899,2]
[311724691,1705363838878,-664.11,0.00022899,2]
[311724693,1705363838888,-500.0,0.00022899,2]
[311724695,1705363838897,-305.13956104,0.00022899,2]
[311724698,1705363838907,-944.79,0.00022899,2]
[311724700,1705363838917,-1647.95,0.00022899,2]
[311724702,1705363838927,-500.0,0.00022899,2]
[311724704,1705363838937,-847.37,0.00022899,2]
[311724706,1705363838948,-500.0,0.00022899,2]
[311724708,1705363838958,-2308.92,0.00022899,2]
[311724710,1705363838968,-683.77,0.00022899,2]
[311724712,1705363838979,-5580.4,0.00022899,2]
[311724714,1705363838988,-239.25132296,0.00022899,2]
[311724716,1705363838998,-500.0,0.00022899,2]
[311724718,1705363839008,-500.0,0.00022899,2]
[311724720,1705363839019,-500.0,0.00022899,2]
[311724723,1705363839034,-10599.85,0.00022899,2]
[311724725,1705363839051,-500.0,0.00022899,2]
[311724727,1705363839068,-500.0,0.00022899,2]
[311724786,1705363839615,-500.0,0.00022899,2]
[311724788,1705363839625,-671.22,0.00022899,2]
[311724791,1705363839635,-2643.06,0.00022899,2]
[311724793,1705363839644,-500.0,0.00022899,2]
[311724795,1705363839654,-500.0,0.00022899,2]
[311724797,1705363839663,-740.95,0.00022899,2]
[311724799,1705363839673,-4647.0,0.00022899,2]
[311724801,1705363839684,-500.0,0.00022899,2]
[311724803,1705363839694,-1401.87,0.00022899,2]
[311724805,1705363839704,-10107.22,0.00022899,2]
[311724807,1705363839714,-500.0,0.00022899,2]
[311724809,1705363839723,-500.0,0.00022899,2]
[311724811,1705363839732,-4411.8,0.00022899,2]
[311724813,1705363839742,-859.75,0.00022899,2]
[311724815,1705363839751,-591.67,0.00022899,2]
[311724817,1705363839760,-500.0,0.00022899,2]
[311724818,1705363839770,-500.0,0.00022899,2]
[311724821,1705363839779,-831.99,0.00022899,2]
[311724822,1705363839789,-1332.9,0.00022899,2]
[311724825,1705363839800,-348.22,0.00022899,2]
[311724827,1705363839809,-1940.63,0.00022899,2]
[311724829,1705363839818,-500.0,0.00022899,2]
[311724831,1705363839827,-500.0,0.00022899,2]
[311724833,1705363839836,-500.0,0.00022899,2]
[311724835,1705363839845,-500.0,0.00022899,2]
[311724837,1705363839854,-500.0,0.00022899,2]
[311724839,1705363839866,-200.20305353,0.00022899,2]
[311724842,1705363839886,-500.0,0.00022899,2]
[311724844,1705363839900,-500.0,0.00022899,2]
[311724846,1705363839909,-500.0,0.00022899,2]
[311724849,1705363839920,-664.9,0.00022899,2]
[311724851,1705363839930,-500.0,0.00022899,2]
[311724853,1705363839940,-554.25,0.00022899,2]
[311724855,1705363839950,-1575.39,0.00022899,2]
[311724857,1705363839961,-2103.86,0.00022899,2]
[311724859,1705363839970,-955.6,0.00022899,2]
[311724861,1705363839981,-500.0,0.00022899,2]
[311724863,1705363839990,-767.18,0.00022899,2]
[311724865,1705363840000,-500.0,0.00022899,2]
[311724867,1705363840010,-583.02050934,0.00022899,2]
[311724870,1705363840020,-7540.3,0.00022899,2]
[311724872,1705363840030,-934.85,0.00022899,2]
[311724874,1705363840040,-761.71,0.00022899,2]
[311724876,1705363840050,-1394.58,0.00022899,2]
[311724878,1705363840060,-1051.78,0.00022899,2]
[311724880,1705363840070,-500.0,0.00022899,2]
[311724882,1705363840080,-4275.1,0.00022899,2]
[311724884,1705363840090,-1594.55,0.00022899,2]
[311724886,1705363840100,-851.1,0.00022899,2]
[311724888,1705363840110,-500.0,0.00022899,2]
[311724890,1705363840120,-945.25,0.00022899,2]
[311724893,1705363840130,-278.40034458,0.00022899,2]
[311724895,1705363840140,-500.0,0.00022899,2]
[311724897,1705363840151,-500.0,0.00022899,2]
[311724899,1705363840161,-510.29,0.00022899,2]
[311724901,1705363840171,-620.91522628,0.00022899,2]
[311724903,1705363840180,-2281.06,0.00022899,2]
[311724905,1705363840190,-500.0,0.00022899,2]
[311724907,1705363840200,-19287.25,0.00022899,2]
[311724909,1705363840210,-500.0,0.00022899,2]
[311724911,1705363840220,-500.0,0.00022899,2]
[311724913,1705363840230,-1508.06,0.00022899,2]
[311724915,1705363840240,-1141.56,0.00022899,2]
[311724918,1705363840249,-509.93027896,0.00022899,2]
[311724920,1705363840260,-1228.99,0.00022899,2]
[311724922,1705363840269,-913.91,0.00022899,2]
[311724925,1705363840279,-500.0,0.00022899,2]
[311724927,1705363840289,-716.5,0.00022899,2]
[311724929,1705363840298,-1394.02,0.00022899,2]
[311724931,1705363840308,-500.0,0.00022899,2]
[311724933,1705363840317,-1464.45,0.00022899,2]
[311724935,1705363840327,-500.0,0.00022899,2]
[311724937,1705363840337,-500.0,0.00022899,2]
[311724939,1705363840346,-500.0,0.00022899,2]
[311724941,1705363840355,-554.2499309,0.00022899,2]
[311724943,1705363840367,-500.0,0.00022899,2]
[311724946,1705363840377,-2357.09,0.00022899,2]
[311724950,1705363840387,-677.44,0.00022899,2]
[311724952,1705363840396,-4061.73,0.00022899,2]
[311724954,1705363840406,-500.0,0.00022899,2]
[311724956,1705363840416,-500.0,0.00022899,2]
[311724959,1705363840425,-500.0,0.00022899,2]
[311724961,1705363840435,-500.0,0.00022899,2]
[311724963,1705363840444,-868.08,0.00022899,2]
[311724965,1705363840454,-166.81160358,0.00022899,2]
[311724967,1705363840463,-1660.13,0.00022899,2]
[311724969,1705363840473,-500.0,0.00022899,2]
[311724971,1705363840482,-500.0,0.00022899,2]
[311724973,1705363840492,-7705.25,0.00022899,2]
[311724975,1705363840501,-500.0,0.00022899,2]
[311724977,1705363840511,-700.88,0.00022899,2]
[311724979,1705363840522,-805.36,0.00022899,2]
[311724980,1705363840532,-500.0,0.00022899,2]
[311724981,1705363840544,-500.0,0.00022899,2]
[311724982,1705363840553,-652.89,0.00022899,2]
[311724983,1705363840563,-582.55,0.00022899,2]
[311724984,1705363840573,-1833.27,0.00022899,2]
[311724985,1705363840583,-500.0,0.00022899,2]
[311724986,1705363840593,-910.46,0.00022899,2]
[311724989,1705363840603,-1841.29,0.00022899,2]
[311724991,1705363840614,-500.0,0.00022899,2]
[311724993,1705363840623,-2182.7,0.00022899,2]
[311724995,1705363840632,-2039.15,0.00022899,2]
[311724997,1705363840643,-500.0,0.00022899,2]
[311724999,1705363840652,-500.0,0.00022899,2]
[311725001,1705363840662,-1776.93,0.00022899,2]
[311725003,1705363840672,-855.35,0.00022899,2]
[311725005,1705363840681,-534.09002174,0.00022899,2]
[311725007,1705363840691,-502.37027402,0.00022899,2]
[311725009,1705363840700,-519.13,0.00022899,2]
[311725011,1705363840710,-1911.1,0.00022899,2]
[311725013,1705363840720,-500.0,0.00022899,2]
[311725015,1705363840729,-1222.32,0.00022899,2]
[311725017,1705363840739,-4164.65294781,0.00022899,2]
[311725020,1705363840748,-500.0,0.00022899,2]
[311725022,1705363840757,-1308.51,0.00022899,2]
[311725024,1705363840766,-1791.33,0.00022899,2]
[311725026,1705363840776,-1655.57,0.00022899,2]
[311725028,1705363840785,-500.61981893,0.00022899,2]
[311725030,1705363840794,-636.81,0.00022899,2]
[311725032,1705363840803,-1693.02,0.00022899,2]
[311725034,1705363840813,-500.0,0.00022899,2]
[311725036,1705363840822,-1814.24,0.00022899,2]
[311725038,1705363840832,-500.0,0.00022899,2]
[311725040,1705363840841,-1384.18,0.00022899,2]
[311725042,1705363840850,-500.0,0.00022899,2]
[311725044,1705363840860,-500.0,0.00022899,2]
[311725046,1705363840869,-1371.67,0.00022899,2]
[311725048,1705363840879,-3827.6,0.00022899,2]
[311725050,1705363840888,-501.7043649,0.00022899,2]
[311725052,1705363840897,-516.79,0.00022899,2]
[311725054,1705363840907,-500.0,0.00022899,2]
[311725056,1705363840916,-2058.88,0.00022899,2]
[311725058,1705363840926,-4554.81,0.00022899,2]
[311725060,1705363840935,-500.0,0.00022899,2]
[311725062,1705363840944,-5101.06,0.00022899,2]
[311725064,1705363840955,-6380.53,0.00022899,2]
[311725067,1705363840965,-1012.86,0.00022899,2]
[311725069,1705363840974,-500.0,0.00022899,2]
[311725071,1705363840983,-3145.83,0.00022899,2]
[311725073,1705363840993,-500.0,0.00022899,2]
[311725075,1705363841002,-500.0,0.00022899,2]
[311725077,1705363841013,-221.81245113,0.00022899,2]
[311725079,1705363841022,-500.0,0.00022899,2]
[311725081,1705363841032,-2653.31,0.00022899,2]
[311725083,1705363841041,-500.0,0.00022899,2]
[311725085,1705363841051,-6055.93,0.00022899,2]
[311725087,1705363841060,-500.0,0.00022899,2]
[311725089,1705363841069,-599.33,0.00022899,2]
[311725091,1705363841079,-679.67,0.00022899,2]
[311725093,1705363841091,-608.08,0.00022899,2]
[311725095,1705363841101,-1260.36,0.00022899,2]
[311725097,1705363841111,-500.0,0.00022899,2]
[311725099,1705363841120,-500.0,0.00022899,2]
[311725102,1705363841130,-500.0,0.00022899,2]
[311725104,1705363841140,-500.0,0.00022899,2]
[311725106,1705363841150,-615.9,0.00022899,2]
[311725108,1705363841159,-2950.25,0.00022899,2]
[311725110,1705363841169,-500.0,0.00022899,2]
[311725112,1705363841178,-1027.23,0.00022899,2]
[311725114,1705363841187,-500.0,0.00022899,2]
[311725116,1705363841197,-509.93027896,0.000229,2]
[311725118,1705363841206,-4164.65294781,0.000229,2]
[311725120,1705363841216,-7500.0,0.000229,2]
[311725122,1705363841226,-233017.37664548,0.000229,2]
[311725124,1705363841235,-280.20182932,0.000229,2]
[311725126,1705363841244,-280.20182932,0.000229,2]
[311725128,1705363841254,-280.20182932,0.000229,2]
[311725130,1705363841265,-280.20182932,0.000229,2]
[311725132,1705363841275,-280.20182932,0.000229,2]
[311725134,1705363841285,-280.20182932,0.000229,2]
[311725136,1705363841296,-280.20182932,0.000229,2]
[311725138,1705363841307,-280.20182932,0.000229,2]
[311725140,1705363841318,-303.52119859,0.000229,2]
[311725142,1705363841329,-280.20182932,0.000229,2]
[311725144,1705363841339,-280.20182932,0.000229,2]
[311725146,1705363841350,-280.20182932,0.000229,2]
[311725148,1705363841363,-280.20182932,0.000229,2]
[311725151,1705363841374,-280.20182932,0.000229,2]
[311725153,1705363841383,-280.20182932,0.000229,2]
[311725155,1705363841393,-280.20182932,0.000229,2]
[311725157,1705363841404,-280.20182932,0.000229,2]
[311725159,1705363841413,-280.20182932,0.000229,2]
[311725161,1705363841423,-509.93027896,0.000229,2]
[311725163,1705363841432,-4164.65294781,0.000229,2]
[311725165,1705363841442,-168.74233352,0.000229,2]
[311725167,1705363841451,-203.71,0.00022902,2]
[311725169,1705363841461,-154.44,0.00022942,2]
[311725171,1705363841470,-157.34,0.00022983,2]
[311725173,1705363841479,-721.34,0.00022985,2]
[311725175,1705363841489,-189.7301635,0.00022986,4]
[311725177,1705363841498,-223.79783694,0.00022986,4]
[311725179,1705363841508,-150.0,0.00022986,4]
[311725181,1705363841518,-4238.05252954,0.00022996,2]
[311725183,1705363841527,-576.53,0.00022997,2]
[311725185,1705363841536,-1064.53,0.00022997,2]
[311725187,1705363841546,-708.59,0.00022997,2]
[311725189,1705363841556,-4514.16,0.00022997,2]
[311725191,1705363841565,-1471.12,0.00022997,2]
[311725193,1705363841575,-1464.77,0.00022997,2]
[311725195,1705363841584,-3400.22,0.00022997,2]
[311725197,1705363841593,-839.69,0.00022997,2]
[311725199,1705363841603,-156.09375,0.00022997,2]
[311725201,1705363841616,-1961.71,0.00022997,2]
[311725203,1705363841626,-500.0,0.00022997,2]
[311725206,1705363841636,-4336.13,0.00022997,2]
[311725208,1705363841645,-7808.34,0.00022997,2]
[311725210,1705363841655,-1378.39,0.00022997,2]
[311725212,1705363841664,-3658.88,0.00022997,2]
[311725214,1705363841674,-2508.42,0.00022997,2]
[311725216,1705363841683,-2494.28,0.00022997,2]
[311725218,1705363841693,-1222.9,0.00022997,2]
[311725220,1705363841702,-5054.4,0.00022997,2]
[311725222,1705363841712,-923.75,0.00022997,2]
[311725224,1705363841722,-3332.92,0.00022997,2]
[311725226,1705363841732,-3729.15,0.00022997,2]
[311725228,1705363841741,-2182.25,0.00022997,2]
[311725230,1705363841752,-1048.67339224,0.00022998,2]
[311725232,1705363841761,-155.0,0.00022998,2]
[311725235,1705363841771,-33348.62482319,0.00022998,2]
[311725237,1705363841781,-155.0,0.00022998,2]
[311725239,1705363841790,-237.16866319,0.00022998,2]
[311725241,1705363841799,-155.0,0.00022998,2]
[311725243,1705363841809,-3564.50272373,0.00022998,2]
[311725245,1705363841818,-155.14404396,0.00022998,2]
[311725247,1705363841828,-4555.69757897,0.00022998,2]
[311725249,1705363841837,-725.48,0.00022998,2]
[311725251,1705363841847,-1556850.65686675,0.00022999,2]
[311725253,1705363841856,-2304.07734728,0.00022999,2]
[311725255,1705363841869,-155.0,0.00022999,2]
[311725257,1705363841878,-5324.81729011,0.00022999,2]
[311725259,1705363841888,-153.0,0.00022999,2]
[311725261,1705363841897,-7783759.42686962,0.00023,2]
[311725264,1705363842657,-951.26132272,0.00023,2]
[311725265,1705363842669,-455.23866117,0.00023,2]
[311725266,1705363842681,-350.26905264,0.00023,2]
[311725267,1705363842692,-415.51208132,0.00023,2]
[311725268,1705363842703,-2065.26775631,0.00023,2]
[311725269,1705363842716,-33524.39012424,0.00023,2]
[311725270,1705363842729,-550.13251355,0.00023,2]
[311725272,1705363842765,-698.685,0.00023,2]
[311725274,1705363842776,-1083.24875629,0.00023,2]
[311725301,1705363843428,-743.0,0.00023,2]
[311725302,1705363843468,-361.91177364,0.00022899,2]
[311725303,1705363843477,-220.89886435,0.00023,2]
[311725304,1705363843488,-777.9999999,0.00023,2]
[311725305,1705363843513,-281.14335274,0.00023,2]
[311725306,1705363843525,-1705.33128564,0.00023,2]
[311725307,1705363844225,-1229.53830845,0.00023,2]
[311725308,1705363844363,-45739.4724754,0.00023,2]
[311725309,1705363844377,-350.36542167,0.00023,2]
[311725310,1705363845228,-158864.46435083,0.00023,2]
[311725311,1705363845238,-87228.43944361,0.00023,2]
[311725312,1705363845283,-3967.69956245,0.00023,2]
[311725313,1705363845296,-344.40938537,0.00023,2]
[311725314,1705363845442,-367.56595263,0.00023,2]
[311725315,1705363845455,-524.84263645,0.00023,2]
[311725316,1705363845467,-386.0354453,0.00023,2]
[311725355,1705363846618,-347.61572832,0.00022899,2]
[311725357,1705363846631,-280.21103288,0.00022899,2]
[311725365,1705363846694,-496.2932388,0.00022899,2]
[311725366,1705363846704,-1229.85243565,0.00023,2]
[311725367,1705363846715,-587.75430259,0.00023,2]
[311725368,1705363846726,-736.48501665,0.00023,2]
[311725369,1705363846737,-1297.13033065,0.00023,2]
[311725370,1705363846749,-4639.4,0.00023,2]
[311725371,1705363846817,-1180.35140789,0.00023,2]
[311725372,1705363846829,-283.7162531,0.00023,2]
[311725373,1705363846841,-280.84097529,0.00023,2]
[311725374,1705363902265,544.81,0.00020269,2]
[311725375,1705363916374,419.33476208,0.0002198,2]
[311725405,1705363975310,2000.0,0.00022003,2]
[311725408,1705363997462,250.0,0.00021983,2]
[311725412,1705364059464,155.9,0.00021985,2]
[311725413,1705364073717,204.0,0.00022085,2]
[311725417,1705364087966,200.0,0.00021874,2]
[311725421,1705364197711,1852.8340926,0.00021874,2]
[311725422,1705364202583,806.86,0.00021845,2]
[311725423,1705364207289,155.0,0.00021874,2]
[311725424,1705364212164,595.47775828,0.00021874,2]
[311725425,1705364227287,155.0,0.00021845,2]
[311725426,1705364250897,152.67,0.00021992,2]
[311725427,1705364251102,152.67,0.0002208,2]
[311725428,1705364251842,176.2,0.00021997,2]
[311725433,1705364349053,531.24,0.00019806,2]
[311725434,1705364349274,531.24,0.00022069,2]
[311725435,1705364362455,157.85,0.00021941,2]
[311725444,1705364422650,428.28245121,0.00021656,2]
[311725445,1705364462279,2000.0,0.00021716,2]
[311725454,1705364546460,250.0,0.00021918,2]
[311725455,1705364563642,840.0,0.00021689,2]
[311725456,1705364622819,164.41,0.00021689,2]
[311725457,1705364661477,773.05,0.00021686,2]
[311725462,1705364726152,-400.0,0.00022111,2]
[311725463,1705364735381,152.67,0.00021899,2]
[311725464,1705364735802,152.67,0.00022003,2]
[311725465,1705364797481,157.25,0.00021929,2]
[311725470,1705364828566,196.26,0.0002171,2]
[311725474,1705364863259,176.2,0.00021898,2]
[311725479,1705364876731,491.1,0.00019788,2]
[311725480,1705364877159,491.1,0.00022052,2]
[311725481,1705364907303,214.6075638,0.00020516,5]
[311725482,1705364951368,240.54,0.000217,2]
[311725487,1705364976863,155.41046091,0.00021591,2]
[311725488,1705364989453,328.0,0.00021651,2]
[311725490,1705365002837,150.0,0.000217,2]
[311725491,1705365003026,150.0,0.000217,2]
[311725492,1705365003216,150.0,0.000217,2]
[311725493,1705365003447,150.0,0.000217,2]
[311725494,1705365004568,150.0,0.000217,2]